Service area,Service sub division,TVBC Service,Expense type,Detailed expense type,TVBC account code,Date Paid,Transaction Reference, Nett Value ,Supplier Name
Central Services to the Public,Local Tax Collection,Revenues,Supplies & Services,Services,Professional Fees,10/01/2022,361203,-1406.25,Airey Consultancy Services Ltd
Environmental & Regulatory,Regulatory Services,Housing and Environmental Health ,Supplies & Services,Miscellaneous Expenses,Promotions / Special Events,13/01/2022,360764,416.67,Hampshire County Council
External Trading Accounts,Business Parks,Premises & Asset Management,Supplies & Services,Communications & Computing,Land Line Telephone Charges,27/01/2022,362500,26.01,Virgin Media Payments Ltd
Cultural & Related,Culture & Heritage,Premises & Asset Management,Supplies & Services,Communications & Computing,Land Line Telephone Charges,27/01/2022,362500,26.03,Virgin Media Payments Ltd
Cultural & Related,Culture & Heritage,Premises & Asset Management,Supplies & Services,Communications & Computing,Land Line Telephone Charges,27/01/2022,362500,26,Virgin Media Payments Ltd
Central Services to the Public,Management & Support Services,IT,Supplies & Services,Communications & Computing,Communication Links,27/01/2022,362500,26,Virgin Media Payments Ltd
Central Services to the Public,Management & Support Services,IT,Supplies & Services,Communications & Computing,Communication Links,27/01/2022,362500,67,Virgin Media Payments Ltd
Cultural & Related,Recreation & Sport,Community and Leisure ,Supplies & Services,Communications & Computing,Land Line Telephone Charges,27/01/2022,362500,26,Virgin Media Payments Ltd
Cultural & Related,Recreation & Sport,Community and Leisure ,Supplies & Services,Communications & Computing,Land Line Telephone Charges,27/01/2022,362500,0,Virgin Media Payments Ltd
Cultural & Related,Recreation & Sport,Community and Leisure ,Supplies & Services,Communications & Computing,Land Line Telephone Charges,27/01/2022,362500,13,Virgin Media Payments Ltd
Cultural & Related,Culture & Heritage,Community and Leisure ,Supplies & Services,Communications & Computing,Communication Links,27/01/2022,362500,74.19,Virgin Media Payments Ltd
"Highways, Roads & Transport",Parking Services,Plan Pol & Transport,Supplies & Services,Communications & Computing,Alarm Lines,27/01/2022,362500,11,Virgin Media Payments Ltd
Central Services to the Public,Management & Support Services,Environmental,Supplies & Services,Communications & Computing,Land Line Telephone Charges,27/01/2022,362500,52.54,Virgin Media Payments Ltd
Central Services to the Public,Emergency Planning,Corporate & Democratic,Supplies & Services,Communications & Computing,Land Line Telephone Charges,27/01/2022,362500,78,Virgin Media Payments Ltd
Environmental & Regulatory,Waste management,Environmental,Employees,Indirect Employee Expenses,Agency Staff - Waged Posts,27/01/2022,362522,426,24-7 Staffing
External Trading Accounts,Business Parks,Premises & Asset Management,Supplies & Services,Communications & Computing,Land Line Telephone Charges,06/01/2022,360456,26.29,Virgin Media Payments Ltd
Cultural & Related,Culture & Heritage,Premises & Asset Management,Supplies & Services,Communications & Computing,Land Line Telephone Charges,06/01/2022,360456,26.18,Virgin Media Payments Ltd
Cultural & Related,Culture & Heritage,Premises & Asset Management,Supplies & Services,Communications & Computing,Land Line Telephone Charges,06/01/2022,360456,26,Virgin Media Payments Ltd
Central Services to the Public,Management & Support Services,IT,Supplies & Services,Communications & Computing,Communication Links,06/01/2022,360456,26,Virgin Media Payments Ltd
Central Services to the Public,Management & Support Services,IT,Supplies & Services,Communications & Computing,Communication Links,06/01/2022,360456,67,Virgin Media Payments Ltd
Cultural & Related,Recreation & Sport,Community and Leisure ,Supplies & Services,Communications & Computing,Land Line Telephone Charges,06/01/2022,360456,26,Virgin Media Payments Ltd
Cultural & Related,Recreation & Sport,Community and Leisure ,Supplies & Services,Communications & Computing,Land Line Telephone Charges,06/01/2022,360456,0,Virgin Media Payments Ltd
Cultural & Related,Recreation & Sport,Community and Leisure ,Supplies & Services,Communications & Computing,Land Line Telephone Charges,06/01/2022,360456,13,Virgin Media Payments Ltd
Cultural & Related,Culture & Heritage,Community and Leisure ,Supplies & Services,Communications & Computing,Communication Links,06/01/2022,360456,74.07,Virgin Media Payments Ltd
"Highways, Roads & Transport",Parking Services,Plan Pol & Transport,Supplies & Services,Communications & Computing,Software Maintenance,06/01/2022,360456,11,Virgin Media Payments Ltd
Central Services to the Public,Management & Support Services,Environmental,Supplies & Services,Communications & Computing,Land Line Telephone Charges,06/01/2022,360456,52.62,Virgin Media Payments Ltd
Central Services to the Public,Emergency Planning,Corporate & Democratic,Supplies & Services,Communications & Computing,Land Line Telephone Charges,06/01/2022,360456,78,Virgin Media Payments Ltd
Central Services to the Public,Management & Support Services,Premises & Asset Management,Premises related Expenditure,Energy Costs,Gas,27/01/2022,362804,428.44,Totalenergies Gas & Power Ltd
Central Services to the Public,Management & Support Services,Premises & Asset Management,Employees,Indirect Employee Expenses,Recruitment Consultants,20/01/2022,362025,430,Shl Group Limited
Environmental & Regulatory,Waste management,Environmental,Transport Related Expenditure,Direct Transport Costs,Repair Materials,13/01/2022,360478,430.02,Dennis Eagle Ltd
Central Services to the Public,Management & Support Services,Environmental,Supplies & Services,"Clothes, Uniforms & Laundry",Clothing + Uniforms,20/01/2022,361523,381.43,Smi Group
Central Services to the Public,Management & Support Services,Environmental,Supplies & Services,Miscellaneous Expenses,Health And Safety,20/01/2022,361523,52.01,Smi Group
Environmental & Regulatory,Street Cleansing (not chargeable to Highways),Environmental,Supplies & Services,Services,Training Courses,20/01/2022,362249,443.75,By-Pass Driver Training
"Highways, Roads & Transport",Parking Services,Plan Pol & Transport,Premises related Expenditure,Repairs Alterations & Maintenance of Buildings,Car Park General Repairs,13/01/2022,360383,437.05,Clearwater 2010 Ltd
Central Services to the Public,Management & Support Services,Premises & Asset Management,Employees,Indirect Employee Expenses,Staff Professional Fees,13/01/2022,361493,539,Personal Data - Data Protection Act 1998
Environmental & Regulatory,Regulatory Services,Housing and Environmental Health ,Supplies & Services,Grants and subscriptions,Capital Grants,13/01/2022,361751,540,Romsey Tree Surgeons Limited
Environmental & Regulatory,Street Cleansing (not chargeable to Highways),Environmental,Supplies & Services,Communications & Computing,Telephone Tracking System,20/01/2022,361940,450,Teletrac Navman (Uk) Ltd
Central Services,Corporate & Democratic Core,Corporate & Democratic,Supplies & Services,Services,Legal Fees,13/01/2022,360120,550,Radcliffe Chambers
Central Services,Corporate & Democratic Core,Corporate & Democratic,Supplies & Services,Services,Legal Fees,20/01/2022,360255,550,Radcliffe Chambers
Central Services to the Public,Management & Support Services,Environmental,Supplies & Services,"Printing, Stationery & General Office Expenses",Photocopying Costs,27/01/2022,361195,459.01,Ricoh Uk Ltd
Cultural & Related,Open Spaces,Community and Leisure ,Supplies & Services,"Equipment, Furniture & Materials",Purchase Equip + Materials,27/01/2022,360274,463,Hillier Nurseries Limited
Environmental & Regulatory,Street Cleansing (not chargeable to Highways),Environmental,Transport Related Expenditure,Direct Transport Costs,External Garages,13/01/2022,360656,465,Adams Morey Ltd
Central Services to the Public,Management & Support Services,Premises & Asset Management,Third Party Payments,Other Establishments,Contract Catering,20/01/2022,361976,501.65,Edwards And Ward Ltd
External Trading Accounts,Property Investments,Premises & Asset Management,Premises related Expenditure,Grounds Maintenance Costs,Grounds Maintenance Contracts,13/01/2022,360386,473.19,Landmarks Sustainability Ltd
Central Services to the Public,Management & Support Services,Premises & Asset Management,Supplies & Services,"Equipment, Furniture & Materials",Purchase Materials (Job Cost),27/01/2022,362743,483,Cjs Portsmouth Ltd
Central Services to the Public,Management & Support Services,Premises & Asset Management,Premises related Expenditure,Water Services,Water And Sewerage Charges,27/01/2022,361558,585.59,Castle Water Limited
Planning & Development,Economic Development,Planning Policy & Economic Development ,Supplies & Services,Grants & Subscriptions,Grants,19/01/2022,362332,600,Fireaway Andover Ltd
Cultural & Related,Open Spaces,Community and Leisure ,Premises related Expenditure,Grounds Maintenance Costs,Gm - Additional Works,20/01/2022,362018,500,Personal Data - Data Protection Act 1998
External Trading Accounts,Business Parks,Premises & Asset Management,Premises related Expenditure,Energy Costs,Gas,20/01/2022,359623,526.68,E.On Next
Central Services to the Public,Management & Support Services,Premises & Asset Management,Supplies & Services,Miscellaneous Expenses,Medical Fees,06/01/2022,360103,32,University Hospital Soton Nhs Foundation Trst
Central Services to the Public,Management & Support Services,Premises & Asset Management,Supplies & Services,Miscellaneous Expenses,Medical Fees,06/01/2022,360103,336.2,University Hospital Soton Nhs Foundation Trst
Cultural & Related,Open Spaces,Community and Leisure ,Supplies & Services,Miscellaneous Expenses,Medical Fees,06/01/2022,360103,19,University Hospital Soton Nhs Foundation Trst
Cultural & Related,Culture & Heritage,Community and Leisure ,Supplies & Services,Miscellaneous Expenses,Medical Fees,06/01/2022,360103,19,University Hospital Soton Nhs Foundation Trst
Planning & Development,Development Control,Planning & Building,Supplies & Services,Miscellaneous Expenses,Medical Fees,06/01/2022,360103,57,University Hospital Soton Nhs Foundation Trst
Environmental & Regulatory,Waste management,Environmental,Supplies & Services,Miscellaneous Expenses,Medical Fees,06/01/2022,360103,111,University Hospital Soton Nhs Foundation Trst
Central Services to the Public,Management & Support Services,Environmental,Transport Related Expenditure,Direct Transport Costs,Repair Materials,19/01/2022,361950,503.9,Air-Seal Products Ltd
Cultural & Related,Recreation & Sport,Premises & Asset Management,Premises related Expenditure,Energy Costs,Gas,27/01/2022,362805,504.29,Totalenergies Gas & Power Ltd
Environmental & Regulatory,Waste management,Environmental,Transport Related Expenditure,Direct Transport Costs,Repair Materials,06/01/2022,360399,511.24,Adams Morey Ltd
Central Services to the Public,Local Tax Collection,Revenues,Supplies & Services,Miscellaneous Expenses,Other Miscellaneous Costs,13/01/2022,360409,514.95,Andover Town Centre Bid Ltd
Cultural & Related,Open Spaces,Environmental,Transport Related Expenditure,Direct Transport Costs,Repair Materials,20/01/2022,362250,520.09,Exsel Plant And Tool Hire Limited
Cultural & Related,Open Spaces,Environmental,Supplies & Services,"Equipment, Furniture & Materials",Purchase Equip + Materials,20/01/2022,361514,521.17,Jewson Ltd
Central Services to the Public,Management & Support Services,Environmental,Employees,Indirect Employee Expenses,Agency Staff - Waged Posts,20/01/2022,360065,522.31,Aligra
Cultural & Related,Open Spaces,Environmental,Supplies & Services,"Equipment, Furniture & Materials",Purchase Equip + Materials,06/01/2022,358874,523,Lister Wilder
Planning & Development,Development Control,Planning & Building,Supplies & Services,Services,Project Consultancy - Policy,27/01/2022,362022,523,Hampshire County Council
Planning & Development,Development Control,Planning & Building,Supplies & Services,"Printing, Stationery & General Office Expenses",Photocopying Costs,27/01/2022,361199,412.54,Ricoh Uk Ltd
Planning & Development,Planning Policy,Plan Pol & Transport,Supplies & Services,"Printing, Stationery & General Office Expenses",Photocopying Costs,27/01/2022,361199,111.13,Ricoh Uk Ltd
External Trading Accounts,Property Investments,Premises & Asset Management,Premises related Expenditure,Repairs Alterations & Maintenance of Buildings,Salt & Gritting,20/01/2022,361505,540,Outco Ltd
Cultural & Related,Open Spaces,Community and Leisure ,Premises related Expenditure,Grounds Maintenance Costs,Gm - Additional Works,27/01/2022,362834,546,Personal Data - Data Protection Act 1998
Cultural & Related,Open Spaces,Environmental,Transport Related Expenditure,Direct Transport Costs,External Garages,20/01/2022,361962,159,Hunt Forest Group Ltd
Cultural & Related,Open Spaces,Environmental,Transport Related Expenditure,Direct Transport Costs,Repair Materials,20/01/2022,361962,388.46,Hunt Forest Group Ltd
Central Services to the Public,Management & Support Services,HR Services,Third Party Payments,Other Local Authorities,Shared Service Contract Costs,06/01/2022,359328,550,Mhr International Uk Ltd
Central Services to the Public,Management & Support Services,Premises & Asset Management,Supplies & Services,Services,Training Courses,27/01/2022,363082,550,Abp Associates Ltd
Cultural & Related,Culture & Heritage,Community and Leisure ,Supplies & Services,Miscellaneous Expenses,Advertising,27/01/2022,358873,564.81,Bauer Corporate Services
Central Services to the Public,Management & Support Services,Premises & Asset Management,Employees,Indirect Employee Expenses,Recruitment Consultants,20/01/2022,362024,565,Shl Group Limited
Central Services to the Public,Management & Support Services,Premises & Asset Management,Third Party Payments,Other Establishments,Private Contractors,27/01/2022,362970,568.25,Corrigenda Ltd
Central Services to the Public,Management & Support Services,Legal & Democratic,Supplies & Services,"Printing, Stationery & General Office Expenses",Photocopying Costs,13/01/2022,361196,336.98,Ricoh Uk Ltd
Central Services to the Public,Elections,Legal & Democratic,Supplies & Services,"Printing, Stationery & General Office Expenses",Photocopying Costs,13/01/2022,361196,189.99,Ricoh Uk Ltd
Environmental & Regulatory,Regulatory Services,Legal & Democratic,Supplies & Services,"Printing, Stationery & General Office Expenses",Photocopying Costs,13/01/2022,361196,44.97,Ricoh Uk Ltd
Central Services to the Public,Local Tax Collection,Revenues,Supplies & Services,"Equipment, Furniture & Materials",Equipment Lease Rentals,20/01/2022,361499,58.08,Quadient Finance Uk Ltd
Central Services to the Public,Local Tax Collection,Revenues,Supplies & Services,"Equipment, Furniture & Materials",Equipment Lease Rentals,20/01/2022,361499,290.38,Quadient Finance Uk Ltd
Housing Services,Housing Benefits ,Revenues,Supplies & Services,"Equipment, Furniture & Materials",Equipment Lease Rentals,20/01/2022,361499,116.15,Quadient Finance Uk Ltd
Central Services to the Public,Local Tax Collection,Revenues,Supplies & Services,"Equipment, Furniture & Materials",Equipment Lease Rentals,20/01/2022,361499,116.14,Quadient Finance Uk Ltd
Central Services to the Public,Management & Support Services,Environmental,Supplies & Services,"Clothes, Uniforms & Laundry",Clothing + Uniforms,13/01/2022,360902,582.27,Smi Group
Central Services to the Public,Management & Support Services,Environmental,Supplies & Services,Miscellaneous Expenses,Health And Safety,13/01/2022,360902,12.7,Smi Group
Planning & Development,Development Control,Planning & Building,Supplies & Services,Miscellaneous Expenses,Advertising,20/01/2022,361246,596.27,Newsquest Media Group Ltd
Environmental & Regulatory,Waste management,Environmental,Employees,Indirect Employee Expenses,Advertising Of Vacancies,20/01/2022,362253,284.2,Newsquest Media Group Ltd
Central Services to the Public,Management & Support Services,Environmental,Employees,Indirect Employee Expenses,Advertising Of Vacancies,20/01/2022,362253,312.8,Newsquest Media Group Ltd
Environmental & Regulatory,Waste management,Environmental,Supplies & Services,Miscellaneous Expenses,Advertising,20/01/2022,361250,450,Newsquest Media Group Ltd
Central Services,Corporate & Democratic Core,Corporate & Democratic,Supplies & Services,Miscellaneous Expenses,Advertising,20/01/2022,361250,150,Newsquest Media Group Ltd
Planning & Development,Development Control,Planning & Building,Supplies & Services,Services,Legal Fees,13/01/2022,360780,600,Sharpe Pritchard Llp
Central Services to the Public,Management & Support Services,Finance,Supplies & Services,"Printing, Stationery & General Office Expenses",Postage Costs,13/01/2022,359593,607.25,Whistl Uk Ltd
Cultural & Related,Open Spaces,Community and Leisure ,Premises related Expenditure,Grounds Maintenance Costs,Gm - Additional Works,06/01/2022,360901,617,Personal Data - Data Protection Act 1998
Planning & Development,Economic Development,Planning Policy & Economic Development ,Supplies & Services,Grants & Subscriptions,Grants,19/01/2022,362333,750,Insync Support Services
Cultural & Related,Culture & Heritage,Premises & Asset Management,Supplies & Services,Grants & Subscriptions,Contributions,20/01/2022,361943,750,Grilled Cheese Cafe Ltd
Planning & Development,Economic Development,Planning Policy & Economic Development ,Supplies & Services,Grants & Subscriptions,Grants,26/01/2022,362998,750,Personal Data - Data Protection Act 1998
Central Services to the Public,Management & Support Services,Chief Executive's,Supplies & Services,Services,Training Courses,27/01/2022,362780,750,Personal Data - Data Protection Act 1998
Cultural & Related,Culture & Heritage,Premises & Asset Management,Supplies & Services,Miscellaneous Expenses,Waste Collection,20/01/2022,362266,178.87,Suez Recycling And Recovery Uk Ltd
Cultural & Related,Culture & Heritage,Premises & Asset Management,Supplies & Services,Miscellaneous Expenses,Waste Collection,20/01/2022,362267,178.87,Suez Recycling And Recovery Uk Ltd
Central Services to the Public,Management & Support Services,Premises & Asset Management,Supplies & Services,Miscellaneous Expenses,Waste Collection,20/01/2022,362266,450.88,Suez Recycling And Recovery Uk Ltd
Central Services to the Public,Management & Support Services,Premises & Asset Management,Supplies & Services,Miscellaneous Expenses,Waste Collection,20/01/2022,362267,450.88,Suez Recycling And Recovery Uk Ltd
Central Services to the Public,Management & Support Services,Premises & Asset Management,Third Party Payments,Other Establishments,Private Contractors,20/01/2022,362262,640,Waterside Blinds
Planning & Development,Development Control,Planning & Building,Supplies & Services,Communications & Computing,Computer Hardware,20/01/2022,360099,650,Exampleit Ltd
Environmental & Regulatory,Waste management,Environmental,Supplies & Services,"Equipment, Furniture & Materials",Purchase Equip + Materials,27/01/2022,362831,656.96,Frontier Plastics Limited
Central Services to the Public,Management & Support Services,Environmental,Employees,Indirect Employee Expenses,Temporary Staff,13/01/2022,360927,800,Parrish Transport Solutions Ltd
Central Services to the Public,Management & Support Services,Environmental,Employees,Indirect Employee Expenses,Temporary Staff,13/01/2022,361183,800,Parrish Transport Solutions Ltd
Central Services to the Public,Management & Support Services,Environmental,Employees,Indirect Employee Expenses,Temporary Staff,27/01/2022,362724,800,Parrish Transport Solutions Ltd
Central Services to the Public,Management & Support Services,Environmental,Employees,Indirect Employee Expenses,Temporary Staff,27/01/2022,362725,800,Parrish Transport Solutions Ltd
Environmental & Regulatory,Waste & Recycling Management,Environmental,Supplies & Services,"Equipment, Furniture & Materials",Purchase Equip + Materials,27/01/2022,362833,60.36,Frontier Plastics Limited
Environmental & Regulatory,Waste management,Environmental,Supplies & Services,"Equipment, Furniture & Materials",Purchase Equip + Materials,27/01/2022,362833,608.3,Frontier Plastics Limited
Cultural & Related,Open Spaces,Environmental,Supplies & Services,Communications & Computing,Mobile Telephone Charges,13/01/2022,360090,206.83,Vodafone Limited
Environmental & Regulatory,Waste & Recycling Management,Environmental,Supplies & Services,Communications & Computing,Mobile Telephone Charges,13/01/2022,360090,71.79,Vodafone Limited
Environmental & Regulatory,Street Cleansing (not chargeable to Highways),Environmental,Supplies & Services,Communications & Computing,Mobile Telephone Charges,13/01/2022,360090,143.5,Vodafone Limited
Environmental & Regulatory,Waste management,Environmental,Supplies & Services,Communications & Computing,Mobile Telephone Charges,13/01/2022,360090,171.5,Vodafone Limited
Central Services to the Public,Management & Support Services,Environmental,Supplies & Services,Communications & Computing,Mobile Telephone Charges,13/01/2022,360090,49,Vodafone Limited
Central Services to the Public,Management & Support Services,Environmental,Supplies & Services,Communications & Computing,Mobile Telephone Charges,13/01/2022,360090,31.5,Vodafone Limited
Central Services to the Public,Management & Support Services,HR Services,Employees,Indirect Employee Expenses,Advertising Of Vacancies,13/01/2022,360871,678,Shl Group Limited
Cultural & Related,Open Spaces,Environmental,Supplies & Services,Communications & Computing,Mobile Telephone Charges,27/01/2022,362038,206.5,Vodafone Limited
Environmental & Regulatory,Waste & Recycling Management,Environmental,Supplies & Services,Communications & Computing,Mobile Telephone Charges,27/01/2022,362038,80.62,Vodafone Limited
Environmental & Regulatory,Street Cleansing (not chargeable to Highways),Environmental,Supplies & Services,Communications & Computing,Mobile Telephone Charges,27/01/2022,362038,143.5,Vodafone Limited
Environmental & Regulatory,Waste management,Environmental,Supplies & Services,Communications & Computing,Mobile Telephone Charges,27/01/2022,362038,171.65,Vodafone Limited
Central Services to the Public,Management & Support Services,Environmental,Supplies & Services,Communications & Computing,Mobile Telephone Charges,27/01/2022,362038,49,Vodafone Limited
Central Services to the Public,Management & Support Services,Environmental,Supplies & Services,Communications & Computing,Mobile Telephone Charges,27/01/2022,362038,31.5,Vodafone Limited
Central Services to the Public,Elections,Legal & Democratic,Supplies & Services,"Printing, Stationery & General Office Expenses",Postage Costs,20/01/2022,361977,697.6,Financial Data Management Plc
Cultural & Related,Open Spaces,Environmental,Supplies & Services,Miscellaneous Expenses,Waste Collection,06/01/2022,360270,698.32,Veolia Es Hampshire Ltd
Cultural & Related,Culture & Heritage,Community and Leisure ,Supplies & Services,Miscellaneous Expenses,Advertising,20/01/2022,358919,700,Newsquest Media Group Ltd
Cultural & Related,Culture & Heritage,Community and Leisure ,Supplies & Services,Services,Tutors,19/01/2022,361741,840,Personal Data - Data Protection Act 1998
"Highways, Roads & Transport",Public Transport,Plan Pol & Transport,Third Party Payments,Transport Operators in Respect of Concessionary Fares,Voluntary Orgs Reimbursement,06/01/2022,360928,845.5,Romsey Good Neighbours
Central Services to the Public,Management & Support Services,Premises & Asset Management,Supplies & Services,"Equipment, Furniture & Materials",Purchase Materials (Job Cost),27/01/2022,362745,705.42,Cjs Portsmouth Ltd
Cultural & Related,Open Spaces,Environmental,Supplies & Services,Miscellaneous Expenses,Waste Collection,27/01/2022,361958,716.54,Collard Enviromental Ltd
Central Services to the Public,Management & Support Services,IT,Supplies & Services,Communications & Computing,Software Maintenance,27/01/2022,359572,717,Winchester City Council
Cultural & Related,Open Spaces,Environmental,Supplies & Services,Miscellaneous Expenses,Waste Collection,20/01/2022,359747,719.28,Collard Enviromental Ltd
Cultural & Related,Culture & Heritage,Community and Leisure ,Supplies & Services,"Printing, Stationery & General Office Expenses",Licences / Affiliation Fees,27/01/2022,362787,729.92,Ppl Prs Ltd
External Trading Accounts,Business Parks,Premises & Asset Management,Premises related Expenditure,Energy Costs,Electricity,27/01/2022,363140,838.91,Drax
Environmental & Regulatory,Waste management,Environmental,Transport Related Expenditure,Direct Transport Costs,Tyres,20/01/2022,361542,738.76,Tructyre Ats
Environmental & Regulatory,Waste management,Environmental,Transport Related Expenditure,Direct Transport Costs,Repair Materials,13/01/2022,361232,739.53,Dennis Eagle Ltd
Central Services to the Public,Management & Support Services,IT,Supplies & Services,"Equipment, Furniture & Materials",IT Supp and Serv AMP,27/01/2022,362965,750,Exampleit Ltd
Planning & Development,Development Control,Planning & Building,Supplies & Services,Services,Legal Fees,20/01/2022,360376,750,Sharpe Pritchard Llp
Central Services,Corporate & Democratic Core,Corporate & Democratic,Supplies & Services,Services,Professional Advice,06/01/2022,359313,750,Dc Commercial Solicitors
Central Services to the Public,Management & Support Services,Housing and Environmental Health ,Supplies & Services,Services,Training Courses,27/01/2022,361926,773.17,International Correspondence Schools Ltd
"Highways, Roads & Transport",Parking Services,Plan Pol & Transport,Employees,Indirect Employee Expenses,Advertising Of Vacancies,20/01/2022,361971,757.88,Newsquest Media Group Ltd
Central Services to the Public,Management & Support Services,Premises & Asset Management,Supplies & Services,Communications & Computing,Telephone Tracking System,13/01/2022,360874,48,Teletrac Navman (Uk) Ltd
Environmental & Regulatory,Regulatory Services,Housing and Environmental Health ,Supplies & Services,Communications & Computing,Telephone Tracking System,13/01/2022,360874,6,Teletrac Navman (Uk) Ltd
Environmental & Regulatory,Regulatory Services,Housing and Environmental Health ,Supplies & Services,Communications & Computing,Telephone Tracking System,13/01/2022,360874,12,Teletrac Navman (Uk) Ltd
Cultural & Related,Open Spaces,Community and Leisure ,Supplies & Services,Communications & Computing,Telephone Tracking System,13/01/2022,360874,6,Teletrac Navman (Uk) Ltd
Cultural & Related,Open Spaces,Community and Leisure ,Supplies & Services,Communications & Computing,Telephone Tracking System,13/01/2022,360874,6,Teletrac Navman (Uk) Ltd
"Highways, Roads & Transport",Parking Services,Plan Pol & Transport,Supplies & Services,Communications & Computing,Telephone Tracking System,13/01/2022,360874,12,Teletrac Navman (Uk) Ltd
Cultural & Related,Open Spaces,Environmental,Supplies & Services,Communications & Computing,Telephone Tracking System,13/01/2022,360874,299.99,Teletrac Navman (Uk) Ltd
Environmental & Regulatory,Waste & Recycling Management,Environmental,Supplies & Services,Communications & Computing,Telephone Tracking System,13/01/2022,360874,36,Teletrac Navman (Uk) Ltd
Environmental & Regulatory,Street Cleansing (not chargeable to Highways),Environmental,Supplies & Services,Communications & Computing,Telephone Tracking System,13/01/2022,360874,174.7,Teletrac Navman (Uk) Ltd
Environmental & Regulatory,Waste management,Environmental,Supplies & Services,Communications & Computing,Telephone Tracking System,13/01/2022,360874,136.6,Teletrac Navman (Uk) Ltd
Environmental & Regulatory,Waste management,Environmental,Supplies & Services,Communications & Computing,Telephone Tracking System,13/01/2022,360874,12,Teletrac Navman (Uk) Ltd
Central Services to the Public,Management & Support Services,Environmental,Supplies & Services,Communications & Computing,Telephone Tracking System,13/01/2022,360874,18,Teletrac Navman (Uk) Ltd
Central Services to the Public,Management & Support Services,Community and Leisure ,Supplies & Services,Communications & Computing,Computer Hardware,27/01/2022,362021,770.79,Exampleit Ltd
Planning & Development,Development Control,Planning & Building,Supplies & Services,Communications & Computing,Computer Hardware,20/01/2022,361507,770.79,Exampleit Ltd
Central Services to the Public,Management & Support Services,Premises & Asset Management,Premises related Expenditure,Water Services,Water And Sewerage Charges,27/01/2022,361571,931.36,Castle Water Limited
Environmental & Regulatory,Regulatory Services,Housing and Environmental Health ,Supplies & Services,Services,Project Consultancy - Policy,13/01/2022,360909,776.31,Als Environmental Ltd
Environmental & Regulatory,Regulatory Services,Housing and Environmental Health ,Supplies & Services,Services,Project Consultancy - Policy,13/01/2022,360911,776.31,Als Environmental Ltd
Environmental & Regulatory,Regulatory Services,Housing and Environmental Health ,Supplies & Services,Services,Project Consultancy - Policy,13/01/2022,361130,776.31,Als Environmental Ltd
Cultural & Related,Culture & Heritage,Community and Leisure ,Supplies & Services,Miscellaneous Expenses,Advertising,20/01/2022,361970,784.53,Newsquest Media Group Ltd
"Highways, Roads & Transport",Public Transport,Plan Pol & Transport,Third Party Payments,Transport Operators in Respect of Concessionary Fares,Voluntary Orgs Reimbursement,27/01/2022,363136,944,Thorngate Village Care Group
Central Services to the Public,Management & Support Services,Finance,Supplies & Services,"Printing, Stationery & General Office Expenses",Postage Costs,27/01/2022,361995,787.78,Whistl Uk Ltd
Environmental & Regulatory,Waste management,Environmental,Supplies & Services,"Equipment, Furniture & Materials",Purchase Equip + Materials,20/01/2022,361983,791.04,Straight Manufacturing Ltd
Environmental & Regulatory,Waste management,Environmental,Supplies & Services,"Equipment, Furniture & Materials",Purchase Equip + Materials,20/01/2022,361984,791.04,Straight Manufacturing Ltd
Environmental & Regulatory,Waste management,Environmental,Employees,Indirect Employee Expenses,Agency Staff - Waged Posts,20/01/2022,361928,791.55,24-7 Staffing
"Highways, Roads & Transport",Parking Services,Plan Pol & Transport,Premises related Expenditure,Repairs Alterations & Maintenance of Buildings,Car Park General Repairs,27/01/2022,363093,792,Externiture Ltd
Environmental & Regulatory,Regulatory Services,Housing and Environmental Health ,Employees,Indirect Employee Expenses,Advertising Of Vacancies,27/01/2022,362984,800,Chartered Inst. Of Environmental Health
Environmental & Regulatory,Regulatory Services,Housing and Environmental Health ,Supplies & Services,Grants and subscriptions,Capital Grants,20/01/2022,362511,960,Totalhomesolution Ltd
Environmental & Regulatory,Waste & Recycling Management,Environmental,Employees,Indirect Employee Expenses,Agency Staff - Waged Posts,20/01/2022,361062,420,Golden Orb Solutions
Environmental & Regulatory,Waste management,Environmental,Employees,Indirect Employee Expenses,Agency Staff - Waged Posts,20/01/2022,361062,384,Golden Orb Solutions
Central Services to the Public,Management & Support Services,Revenues,Supplies & Services,"Equipment, Furniture & Materials",Purchase Furniture,20/01/2022,361948,805.12,Portsdown Office Ltd
Cultural & Related,Culture & Heritage,Community and Leisure ,Supplies & Services,"Printing, Stationery & General Office Expenses",Licences / Affiliation Fees,27/01/2022,362786,805.61,Ppl Prs Ltd
Cultural & Related,Open Spaces,Community and Leisure ,Supplies & Services,"Equipment, Furniture & Materials",Purchase Equip + Materials,13/01/2022,360774,547.48,Glasdon Uk Ltd
Cultural & Related,Open Spaces,Community and Leisure ,Supplies & Services,"Equipment, Furniture & Materials",Purchase Equip + Materials,13/01/2022,360774,273.74,Glasdon Uk Ltd
Environmental & Regulatory,Waste management,Environmental,Employees,Indirect Employee Expenses,Agency Staff - Waged Posts,27/01/2022,361268,828.24,Simple Recruitment Services Ltd
Central Services to the Public,Management & Support Services,HR Services,Supplies & Services,Services,External Training Consultants,27/01/2022,358660,1000,Winchester City Council
Planning & Development,Community Development,Community and Leisure ,Supplies & Services,Grants & Subscriptions,Grants,13/01/2022,361759,1000,Stockbridge Parish Council
Planning & Development,Community Development,Community and Leisure ,Supplies & Services,Grants & Subscriptions,Grants,13/01/2022,361760,1000,Roman Way Primary School
Environmental & Regulatory,Regulatory Services,Housing and Environmental Health ,Supplies & Services,Services,Project Consultancy - Policy,13/01/2022,360906,833.69,Als Environmental Ltd
External Trading Accounts,Business Parks,Premises & Asset Management,Supplies & Services,Miscellaneous Expenses,Waste Collection,20/01/2022,362306,840.2,Basingstoke Skip Hire & Sthrn Waste Mgt Ltd
Environmental & Regulatory,Waste management,Environmental,Transport Related Expenditure,Direct Transport Costs,Tyres,13/01/2022,360923,844.08,Tructyre Ats
Central Services to the Public,Management & Support Services,HR Services,Supplies & Services,Services,External Training Consultants,27/01/2022,362310,850,Planned Future Seminars Ltd
Cultural & Related,Recreation & Sport,Community and Leisure ,Premises related Expenditure,Grounds Maintenance Costs,Gm - Additional Works,06/01/2022,360374,850,Evergreen Rabbit Control
Planning & Development,Development Control,Planning & Building,Employees,Indirect Employee Expenses,Advertising Of Vacancies,20/01/2022,362012,850,Spacehouse Limited
Planning & Development,Development Control,Planning & Building,Supplies & Services,Services,Training Courses,27/01/2022,361503,850,Influential Software Services Ltd
Planning & Development,Planning Policy,Plan Pol & Transport,Employees,Indirect Employee Expenses,Advertising Of Vacancies,27/01/2022,361937,850,Hemming Group Limited
Central Services to the Public,Local Tax Collection,Revenues,Employees,Indirect Employee Expenses,Temporary Staff,27/01/2022,362515,855.5,The Oyster Partnership Ltd
Planning & Development,Building Control,Planning & Building,Employees,Indirect Employee Expenses,Agency Staff - Waged Posts,20/01/2022,361750,866.38,Brg Interim Solutions Ltd
Environmental & Regulatory,Regulatory Services,Premises & Asset Management,Premises related Expenditure,Water Services,Water And Sewerage Charges,27/01/2022,361560,1050.62,Castle Water Limited
Central Services to the Public,Management & Support Services,IT,Supplies & Services,Communications & Computing,Land Line Telephone Charges,20/01/2022,361933,880.11,Gamma
Cultural & Related,Open Spaces,Environmental,Supplies & Services,"Equipment, Furniture & Materials",Purchase Equip + Materials,06/01/2022,360101,884.87,Tudor Environmental
Environmental & Regulatory,Waste management,Environmental,Transport Related Expenditure,Direct Transport Costs,External Garages,20/01/2022,361544,630.23,Dennis Eagle Ltd
Environmental & Regulatory,Waste management,Environmental,Transport Related Expenditure,Direct Transport Costs,Repair Materials,20/01/2022,361544,258.37,Dennis Eagle Ltd
Central Services to the Public,Management & Support Services,Premises & Asset Management,Third Party Payments,Other Establishments,Private Contractors,13/01/2022,360271,900,Doorgear Limited
Environmental & Regulatory,Regulatory Services,Housing and Environmental Health ,Employees,Indirect Employee Expenses,Agency Staff - Waged Posts,27/01/2022,362964,905.4,The Oyster Partnership Ltd
Cultural & Related,Open Spaces,Environmental,Supplies & Services,"Equipment, Furniture & Materials",Purchase Equip + Materials,27/01/2022,361953,910.72,Groundsman Tools Ltd
Cultural & Related,Culture & Heritage,Community and Leisure ,Third Party Payments,Private contractors,Main Contractor Costs,27/01/2022,362966,90,Zen Internet Limited
Central Services to the Public,Management & Support Services,IT,Supplies & Services,Communications & Computing,Communication Links,27/01/2022,362966,766.84,Zen Internet Limited
"Highways, Roads & Transport",Parking Services,Plan Pol & Transport,Supplies & Services,Communications & Computing,Communication Links,27/01/2022,362966,41.49,Zen Internet Limited
"Highways, Roads & Transport",Parking Services,Plan Pol & Transport,Supplies & Services,Communications & Computing,Land Line Telephone Charges,27/01/2022,362966,27.49,Zen Internet Limited
Cultural & Related,Culture & Heritage,Community and Leisure ,Supplies & Services,"Printing, Stationery & General Office Expenses",Licences / Affiliation Fees,27/01/2022,362788,939.82,Ppl Prs Ltd
Environmental & Regulatory,Waste management,Environmental,Transport Related Expenditure,Direct Transport Costs,External Garages,06/01/2022,360281,711.24,Dennis Eagle Ltd
Environmental & Regulatory,Waste management,Environmental,Transport Related Expenditure,Direct Transport Costs,Repair Materials,06/01/2022,360281,236.18,Dennis Eagle Ltd
Environmental & Regulatory,Regulatory Services,Housing and Environmental Health ,Supplies & Services,Services,Project Consultancy - Policy,13/01/2022,361170,974.47,Als Environmental Ltd
Planning & Development,Development Control,Planning & Building,Supplies & Services,Communications & Computing,Hardware Maintenance,06/01/2022,360908,995,Temple Knight Plc
Central Services to the Public,Management & Support Services,Premises & Asset Management,Supplies & Services,Grants & Subscriptions,Subscriptions,27/01/2022,362807,1000,Healthy Buildings International
Environmental & Regulatory,Regulatory Services,Housing and Environmental Health ,Supplies & Services,Grants & Subscriptions,Subscriptions,20/01/2022,360055,1000,Rhe Global
Environmental & Regulatory,Waste & Recycling Management,Environmental,Transport Related Expenditure,Direct Transport Costs,Tyres,06/01/2022,360779,27.45,Tructyre Ats
Environmental & Regulatory,Waste management,Environmental,Transport Related Expenditure,Direct Transport Costs,Tyres,06/01/2022,360779,633.13,Tructyre Ats
Central Services to the Public,Management & Support Services,Environmental,Transport Related Expenditure,Direct Transport Costs,Repair Materials,06/01/2022,360779,365.08,Tructyre Ats
Planning & Development,Building Control,Planning & Building,Employees,Indirect Employee Expenses,Agency Staff - Waged Posts,06/01/2022,360370,1036.07,Brg Interim Solutions Ltd
Environmental & Regulatory,Waste management,Environmental,Transport Related Expenditure,Direct Transport Costs,Repair Materials,06/01/2022,360279,705.67,Dennis Eagle Ltd
Central Services to the Public,Management & Support Services,Environmental,Transport Related Expenditure,Direct Transport Costs,Repair Materials,06/01/2022,360279,333.92,Dennis Eagle Ltd
Cultural & Related,Tourism,Planning Policy & Economic Development ,Supplies & Services,Services,Project Consultancy - Policy,06/01/2022,360426,1050,The Marketing Collective Ltd
Planning & Development,Development Control,Planning & Building,Transport Related Expenditure,Contract Hire and Operating Leases,Officer lease cars,20/01/2022,361974,1270.71,Arval Uk Ltd
Central Services to the Public,Local Tax Collection,Revenues,Employees,Indirect Employee Expenses,Temporary Staff,13/01/2022,359576,1073,The Oyster Partnership Ltd
Central Services to the Public,Local Tax Collection,Revenues,Employees,Indirect Employee Expenses,Temporary Staff,13/01/2022,360476,1073,The Oyster Partnership Ltd
Central Services to the Public,Local Tax Collection,Revenues,Employees,Indirect Employee Expenses,Temporary Staff,13/01/2022,360916,1073,The Oyster Partnership Ltd
Central Services to the Public,Local Tax Collection,Revenues,Employees,Indirect Employee Expenses,Temporary Staff,20/01/2022,360261,1073,The Oyster Partnership Ltd
Central Services,Corporate & Democratic Core,Corporate & Democratic,Supplies & Services,Miscellaneous Expenses,Design Fees,27/01/2022,363134,1073,Cammegh Davies Fleming
External Trading Accounts,Business Parks,Premises & Asset Management,Premises related Expenditure,Cleaning and domestic supplies,Contract Cleaning - Non Estates,20/01/2022,362299,1080,Hi-Spec Facilities Services Plc
"Highways, Roads & Transport",Parking Services,Plan Pol & Transport,Supplies & Services,Services,Professional Fees,13/01/2022,360894,1136.77,Advam (Uk) Limited
Cultural & Related,Tourism,Planning Policy & Economic Development ,Premises related Expenditure,Repairs Alterations & Maintenance of Buildings,Planned Maintenance - Non Est,27/01/2022,362783,70.99,Temple Lifts Ltd
Cultural & Related,Tourism,Planning Policy & Economic Development ,Premises related Expenditure,Repairs Alterations & Maintenance of Buildings,Planned Maintenance - Non Est,27/01/2022,362784,70.99,Temple Lifts Ltd
Cultural & Related,Culture & Heritage,Premises & Asset Management,Premises related Expenditure,Repairs Alterations & Maintenance of Buildings,Planned Maintenance - Non Est,27/01/2022,362783,20.09,Temple Lifts Ltd
Cultural & Related,Culture & Heritage,Premises & Asset Management,Premises related Expenditure,Repairs Alterations & Maintenance of Buildings,Planned Maintenance - Non Est,27/01/2022,362784,20.09,Temple Lifts Ltd
Central Services to the Public,Management & Support Services,Premises & Asset Management,Premises related Expenditure,Repairs Alterations & Maintenance of Buildings,Planned Maintenance - Non Est,27/01/2022,362783,840,Temple Lifts Ltd
Central Services to the Public,Management & Support Services,Premises & Asset Management,Premises related Expenditure,Repairs Alterations & Maintenance of Buildings,Planned Maintenance - Non Est,27/01/2022,362784,840,Temple Lifts Ltd
Cultural & Related,Recreation & Sport,Community and Leisure ,Premises related Expenditure,Repairs Alterations & Maintenance of Buildings,Planned Maintenance - Non Est,27/01/2022,362783,210,Temple Lifts Ltd
Cultural & Related,Recreation & Sport,Community and Leisure ,Premises related Expenditure,Repairs Alterations & Maintenance of Buildings,Planned Maintenance - Non Est,27/01/2022,362784,210,Temple Lifts Ltd
Cultural & Related,Open Spaces,Environmental,Supplies & Services,Services,Training Courses,27/01/2022,362016,1150,The Play Inspection Company Ltd
Environmental & Regulatory,Waste management,Environmental,Employees,Indirect Employee Expenses,Agency Staff - Waged Posts,06/01/2022,360402,896,Golden Orb Solutions
Environmental & Regulatory,Waste management,Environmental,Employees,Indirect Employee Expenses,Agency Staff - Waged Posts,06/01/2022,360402,256,Golden Orb Solutions
Planning & Development,Building Control,Planning & Building,Employees,Indirect Employee Expenses,Agency Staff - Waged Posts,06/01/2022,360775,1155.01,Hays Specialist Recruitment
Central Services to the Public,Management & Support Services,IT,Supplies & Services,Communications & Computing,Computer Hardware,13/01/2022,360416,1165,Virtual Effect Ltd
Cultural & Related,Recreation & Sport,Community and Leisure ,Premises related Expenditure,Grounds Maintenance Costs,Gm - Additional Works,13/01/2022,361140,1176,Personal Data - Data Protection Act 1998
Environmental & Regulatory,Waste management,Environmental,Transport Related Expenditure,Direct Transport Costs,Repair Materials,13/01/2022,360890,1177.7,Dennis Eagle Ltd
Cultural & Related,Recreation & Sport,Premises & Asset Management,Premises related Expenditure,Water Services,Water And Sewerage Charges,27/01/2022,362986,1437.69,Castle Water Limited
External Trading Accounts,Property Investments,Premises & Asset Management,Premises related Expenditure,Repairs Alterations & Maintenance of Buildings,Building Maint - Non Estates,20/01/2022,360668,1220,Practical Roof Solutions Ltd
Environmental & Regulatory,Street Cleansing (not chargeable to Highways),Environmental,Supplies & Services,"Equipment, Furniture & Materials",Purchase Equip + Materials,06/01/2022,360372,17.76,Md Services (Andover) Ltd
Environmental & Regulatory,Waste management,Environmental,Supplies & Services,"Equipment, Furniture & Materials",Purchase Equip + Materials,06/01/2022,360372,17.76,Md Services (Andover) Ltd
Central Services to the Public,Management & Support Services,Environmental,Transport Related Expenditure,Direct Transport Costs,Workshop Consumables,06/01/2022,360372,785.6,Md Services (Andover) Ltd
Central Services to the Public,Management & Support Services,Environmental,Transport Related Expenditure,Direct Transport Costs,Repair Materials,06/01/2022,360372,352.08,Md Services (Andover) Ltd
Central Services to the Public,Management & Support Services,Environmental,Supplies & Services,"Equipment, Furniture & Materials",Purchase Tools,06/01/2022,360372,47.95,Md Services (Andover) Ltd
Planning & Development,Development Control,Planning & Building,Supplies & Services,Services,Legal Fees,13/01/2022,360781,1319,Sharpe Pritchard Llp
Cultural & Related,Culture & Heritage,Premises & Asset Management,Premises related Expenditure,Repairs Alterations & Maintenance of Buildings,Planned Maintenance - Non Est,20/01/2022,361524,165,A C Wallbridge & Co Ltd
Cultural & Related,Culture & Heritage,Premises & Asset Management,Premises related Expenditure,Repairs Alterations & Maintenance of Buildings,Planned Maintenance - Non Est,20/01/2022,361524,185,A C Wallbridge & Co Ltd
Central Services to the Public,Management & Support Services,Premises & Asset Management,Premises related Expenditure,Repairs Alterations & Maintenance of Buildings,Planned Maintenance - Non Est,20/01/2022,361524,195,A C Wallbridge & Co Ltd
Central Services to the Public,Management & Support Services,Premises & Asset Management,Premises related Expenditure,Repairs Alterations & Maintenance of Buildings,Planned Maintenance - Non Est,20/01/2022,361524,225,A C Wallbridge & Co Ltd
Cultural & Related,Recreation & Sport,Community and Leisure ,Premises related Expenditure,Repairs Alterations & Maintenance of Buildings,Planned Maintenance - Non Est,20/01/2022,361524,280,A C Wallbridge & Co Ltd
Cultural & Related,Recreation & Sport,Community and Leisure ,Premises related Expenditure,Repairs Alterations & Maintenance of Buildings,Planned Maintenance - Non Est,20/01/2022,361524,185,A C Wallbridge & Co Ltd
Planning & Development,Development Control,Planning & Building,Employees,Indirect Employee Expenses,Advertising Of Vacancies,27/01/2022,362498,1250,Redactive Events Ltd
Cultural & Related,Open Spaces,Environmental,Supplies & Services,"Equipment, Furniture & Materials",Purchase Equip + Materials,27/01/2022,362309,1251,Broxap Limited (Stadia Sports )
Environmental & Regulatory,Street Cleansing (not chargeable to Highways),Environmental,Employees,Indirect Employee Expenses,Agency Staff - Waged Posts,20/01/2022,360407,769.67,24-7 Staffing
Environmental & Regulatory,Waste management,Environmental,Employees,Indirect Employee Expenses,Agency Staff - Waged Posts,20/01/2022,360407,498,24-7 Staffing
Environmental & Regulatory,Regulatory Services,Housing and Environmental Health ,Supplies & Services,Grants and subscriptions,Capital Grants,13/01/2022,361758,1547.48,Prism Medical Uk
"Highways, Roads & Transport",Public Transport,Plan Pol & Transport,Third Party Payments,Transport Operators in Respect of Concessionary Fares,Voluntary Orgs Reimbursement,13/01/2022,360075,1548.5,Andover Neighbourcare
Environmental & Regulatory,Waste management,Environmental,Employees,Indirect Employee Expenses,Agency Staff - Waged Posts,20/01/2022,361065,1291.52,24-7 Staffing
Cultural & Related,Culture & Heritage,Community and Leisure ,Supplies & Services,Miscellaneous Expenses,Promotions / Special Events,20/01/2022,361536,1559.88,Romsey Town Council
Central Services to the Public,Management & Support Services,IT,Employees,Indirect Employee Expenses,Recruitment Consultants,20/01/2022,361925,1308,Totaljobs Group Ltd
Central Services to the Public,Local Tax Collection,Revenues,Supplies & Services,Services,Professional Fees,13/01/2022,361264,412.36,Ross & Roberts
Planning & Development,Planning Policy,Plan Pol & Transport,Supplies & Services,Grants & Subscriptions,Grants,20/01/2022,359582,1605.75,Hampshire County Council
Planning & Development,Planning Policy,Plan Pol & Transport,Supplies & Services,Grants & Subscriptions,Grants,20/01/2022,361506,1605.75,Hampshire County Council
Cultural & Related,Recreation & Sport,Community and Leisure ,Supplies & Services,Miscellaneous Expenses,Promotions / Special Events,27/01/2022,362735,1352,Grounds Mananagement Association
Central Services to the Public,Management & Support Services,IT,Supplies & Services,"Equipment, Furniture & Materials",IT Supp and Serv AMP,20/01/2022,362014,1359.92,Pure Technology Group
Environmental & Regulatory,Waste management,Environmental,Employees,Indirect Employee Expenses,Agency Staff - Waged Posts,20/01/2022,359599,1402,Golden Orb Solutions
Central Services to the Public,Local Tax Collection,Revenues,Supplies & Services,Services,Professional Fees,10/01/2022,249779,1406.25,Airey Consultancy Services Ltd
Environmental & Regulatory,Waste & Recycling Management,Environmental,Employees,Indirect Employee Expenses,Agency Staff - Waged Posts,27/01/2022,362730,638.15,Golden Orb Solutions
Environmental & Regulatory,Waste management,Environmental,Employees,Indirect Employee Expenses,Agency Staff - Waged Posts,27/01/2022,362730,792,Golden Orb Solutions
Environmental & Regulatory,Waste & Recycling Management,Environmental,Employees,Indirect Employee Expenses,Agency Staff - Waged Posts,20/01/2022,361064,548.91,Golden Orb Solutions
Environmental & Regulatory,Waste management,Environmental,Employees,Indirect Employee Expenses,Agency Staff - Waged Posts,20/01/2022,361064,896,Golden Orb Solutions
Environmental & Regulatory,Regulatory Services,Housing and Environmental Health ,Supplies & Services,Grants and subscriptions,Capital Grants,27/01/2022,363152,1745,Prism Medical Uk
Planning & Development,Development Control,Planning & Building,Employees,Indirect Employee Expenses,Temporary Staff,06/01/2022,360770,1480,G2 Recruitment Solutions
Planning & Development,Development Control,Planning & Building,Employees,Indirect Employee Expenses,Temporary Staff,27/01/2022,362777,1480,G2 Recruitment Solutions
Central Services to the Public,Management & Support Services,Revenues,Supplies & Services,Communications & Computing,Software Maintenance,27/01/2022,362307,1485,Abavus Limited
External Trading Accounts,Business Parks,Premises & Asset Management,Premises related Expenditure,Repairs Alterations & Maintenance of Buildings,Planned Maintenance - Non Est,27/01/2022,362808,48.03,Healthy Buildings International
External Trading Accounts,Business Parks,Premises & Asset Management,Premises related Expenditure,Repairs Alterations & Maintenance of Buildings,Planned Maintenance - Non Est,27/01/2022,362808,192.12,Healthy Buildings International
Cultural & Related,Culture & Heritage,Premises & Asset Management,Premises related Expenditure,Repairs Alterations & Maintenance of Buildings,Planned Maintenance - Non Est,27/01/2022,362808,48.03,Healthy Buildings International
Cultural & Related,Culture & Heritage,Premises & Asset Management,Premises related Expenditure,Repairs Alterations & Maintenance of Buildings,Planned Maintenance - Non Est,27/01/2022,362808,288.18,Healthy Buildings International
Cultural & Related,Culture & Heritage,Premises & Asset Management,Premises related Expenditure,Repairs Alterations & Maintenance of Buildings,Planned Maintenance - Non Est,27/01/2022,362808,48.03,Healthy Buildings International
Cultural & Related,Culture & Heritage,Premises & Asset Management,Premises related Expenditure,Repairs Alterations & Maintenance of Buildings,Planned Maintenance - Non Est,27/01/2022,362808,48.03,Healthy Buildings International
Cultural & Related,Culture & Heritage,Premises & Asset Management,Premises related Expenditure,Repairs Alterations & Maintenance of Buildings,Planned Maintenance - Non Est,27/01/2022,362808,96.06,Healthy Buildings International
Central Services to the Public,Management & Support Services,Premises & Asset Management,Premises related Expenditure,Repairs Alterations & Maintenance of Buildings,Planned Maintenance - Non Est,27/01/2022,362808,48.03,Healthy Buildings International
Central Services to the Public,Management & Support Services,Premises & Asset Management,Premises related Expenditure,Repairs Alterations & Maintenance of Buildings,Planned Maintenance - Non Est,27/01/2022,362808,48.03,Healthy Buildings International
Central Services to the Public,Management & Support Services,Premises & Asset Management,Premises related Expenditure,Repairs Alterations & Maintenance of Buildings,Planned Maintenance - Non Est,27/01/2022,362808,48.03,Healthy Buildings International
Environmental & Regulatory,Regulatory Services,Premises & Asset Management,Premises related Expenditure,Repairs Alterations & Maintenance of Buildings,Planned Maintenance - Non Est,27/01/2022,362808,96.06,Healthy Buildings International
Cultural & Related,Recreation & Sport,Community and Leisure ,Premises related Expenditure,Repairs Alterations & Maintenance of Buildings,Planned Maintenance - Non Est,27/01/2022,362808,48.03,Healthy Buildings International
Cultural & Related,Recreation & Sport,Community and Leisure ,Premises related Expenditure,Repairs Alterations & Maintenance of Buildings,Planned Maintenance - Non Est,27/01/2022,362808,48.03,Healthy Buildings International
Cultural & Related,Recreation & Sport,Community and Leisure ,Premises related Expenditure,Repairs Alterations & Maintenance of Buildings,Planned Maintenance - Non Est,27/01/2022,362808,48.03,Healthy Buildings International
Cultural & Related,Recreation & Sport,Community and Leisure ,Premises related Expenditure,Repairs Alterations & Maintenance of Buildings,Planned Maintenance - Non Est,27/01/2022,362808,48.03,Healthy Buildings International
Cultural & Related,Recreation & Sport,Community and Leisure ,Premises related Expenditure,Repairs Alterations & Maintenance of Buildings,Planned Maintenance - Non Est,27/01/2022,362808,48.03,Healthy Buildings International
Environmental & Regulatory,"Cemetery, Cremation and Mortuary Services",Community and Leisure ,Premises related Expenditure,Repairs Alterations & Maintenance of Buildings,Planned Maintenance - Non Est,27/01/2022,362808,48.03,Healthy Buildings International
Environmental & Regulatory,"Cemetery, Cremation and Mortuary Services",Community and Leisure ,Premises related Expenditure,Repairs Alterations & Maintenance of Buildings,Planned Maintenance - Non Est,27/01/2022,362808,48.03,Healthy Buildings International
Cultural & Related,Open Spaces,Community and Leisure ,Premises related Expenditure,Repairs Alterations & Maintenance of Buildings,Planned Maintenance - Non Est,27/01/2022,362808,48.03,Healthy Buildings International
Cultural & Related,Culture & Heritage,Community and Leisure ,Premises related Expenditure,Repairs Alterations & Maintenance of Buildings,Planned Maintenance - Non Est,27/01/2022,362808,48.03,Healthy Buildings International
"Highways, Roads & Transport",Parking Services,Plan Pol & Transport,Premises related Expenditure,Repairs Alterations & Maintenance of Buildings,Planned Maintenance - Non Est,27/01/2022,362808,48.03,Healthy Buildings International
Cultural & Related,Open Spaces,Community and Leisure ,Supplies & Services,Services,Training Courses,06/01/2022,360801,1495,The Knowledge Academy Ltd
Planning & Development,Building Control,Planning & Building,Employees,Indirect Employee Expenses,Agency Staff - Waged Posts,27/01/2022,362002,1501.51,Hays Specialist Recruitment
Cultural & Related,Open Spaces,Environmental,Supplies & Services,Services,Training Courses,13/01/2022,361746,1515,G A R Training Services Ltd
Cultural & Related,Open Spaces,Environmental,Supplies & Services,Services,Training Courses,20/01/2022,362017,1515,G A R Training Services Ltd
Central Services to the Public,Management & Support Services,IT,Supplies & Services,Communications & Computing,Communication Links,20/01/2022,361980,1529,Virgin Media Payments Ltd
Central Services to the Public,Management & Support Services,Environmental,Supplies & Services,Communications & Computing,Software Maintenance,27/01/2022,362514,1559.47,Triscan Systems Ltd
Environmental & Regulatory,Street Cleansing (not chargeable to Highways),Environmental,Employees,Indirect Employee Expenses,Agency Staff - Waged Posts,20/01/2022,360870,1076.58,24-7 Staffing
Environmental & Regulatory,Waste management,Environmental,Employees,Indirect Employee Expenses,Agency Staff - Waged Posts,20/01/2022,360870,491.36,24-7 Staffing
Environmental & Regulatory,Regulatory Services,Housing and Environmental Health ,Supplies & Services,Miscellaneous Expenses,Kennel fees,27/01/2022,362497,1570.77,Three Oak Boarding Kennels
"Highways, Roads & Transport",Public Transport,Plan Pol & Transport,Third Party Payments,Transport Operators in Respect of Concessionary Fares,Voluntary Orgs Reimbursement,13/01/2022,361061,1889,Andover Neighbourcare
Cultural & Related,Culture & Heritage,Community and Leisure ,Supplies & Services,"Printing, Stationery & General Office Expenses",Postage Costs,20/01/2022,361972,1934,John Dollin Printing Services Ltd
Central Services to the Public,Local Tax Collection,Revenues,Supplies & Services,"Printing, Stationery & General Office Expenses",Postage Costs,20/01/2022,361545,489.49,Royal Mail Group Ltd
Central Services to the Public,Local Tax Collection,Revenues,Supplies & Services,"Printing, Stationery & General Office Expenses",Postage Costs,20/01/2022,361545,652.66,Royal Mail Group Ltd
Housing Services,Housing Benefits ,Revenues,Supplies & Services,"Printing, Stationery & General Office Expenses",Postage Costs,20/01/2022,361545,326.34,Royal Mail Group Ltd
Central Services to the Public,Local Tax Collection,Revenues,Supplies & Services,"Printing, Stationery & General Office Expenses",Postage Costs,20/01/2022,361545,163.17,Royal Mail Group Ltd
Environmental & Regulatory,Waste & Recycling Management,Environmental,Employees,Indirect Employee Expenses,Agency Staff - Waged Posts,20/01/2022,361956,584,Golden Orb Solutions
Environmental & Regulatory,Waste management,Environmental,Employees,Indirect Employee Expenses,Agency Staff - Waged Posts,20/01/2022,361956,1080,Golden Orb Solutions
Planning & Development,Community Development,Community and Leisure ,Supplies & Services,Grants & Subscriptions,Grants,06/01/2022,360858,2000,Andover Churches Together
Cultural & Related,Culture & Heritage,Community and Leisure ,Supplies & Services,Miscellaneous Expenses,Promotions / Special Events,20/01/2022,361537,2000,Romsey Town Council
Environmental & Regulatory,Street Cleansing (not chargeable to Highways),Environmental,Employees,Indirect Employee Expenses,Agency Staff - Waged Posts,20/01/2022,359774,782.95,24-7 Staffing
Environmental & Regulatory,Waste management,Environmental,Employees,Indirect Employee Expenses,Agency Staff - Waged Posts,20/01/2022,359774,889.76,24-7 Staffing
Environmental & Regulatory,Waste management,Environmental,Supplies & Services,Services,Training Courses,20/01/2022,361965,1765,By-Pass Driver Training
Environmental & Regulatory,Street Cleansing (not chargeable to Highways),Environmental,Supplies & Services,"Equipment, Furniture & Materials",Purchase Equip + Materials,20/01/2022,360907,1747.2,Imperial Polythene Products Ltd
Planning & Development,Building Control,Planning & Building,Employees,Indirect Employee Expenses,Agency Staff - Waged Posts,27/01/2022,361516,1795.13,Hays Specialist Recruitment
Cultural & Related,Culture & Heritage,Community and Leisure ,Supplies & Services,Miscellaneous Expenses,Booking Of Acts,13/01/2022,361202,1806.49,The Pantaloons
Cultural & Related,Open Spaces,Community and Leisure ,Premises related Expenditure,Grounds Maintenance Costs,Non Contract Tree Works,06/01/2022,360920,1830,Going Environmental Ltd
Central Services to the Public,Management & Support Services,Premises & Asset Management,Third Party Payments,Other Establishments,Private Contractors,20/01/2022,360670,1881.9,Personal Data - Data Protection Act 1998
Environmental & Regulatory,Regulatory Services,Housing and Environmental Health ,Supplies & Services,Services,Project Consultancy - Policy,13/01/2022,360910,1883.82,Als Environmental Ltd
Central Services to the Public,Management & Support Services,IT,Supplies & Services,Services,Training Courses,13/01/2022,360893,1900,Richmond Systems
Cultural & Related,Culture & Heritage,Community and Leisure ,Supplies & Services,Miscellaneous Expenses,Booking Of Acts,27/01/2022,362328,1923.05,The Stones
Cultural & Related,Culture & Heritage,Community and Leisure ,Supplies & Services,Miscellaneous Expenses,Booking Of Acts,20/01/2022,362316,1950.58,No Third Entertainments Llp
Cultural & Related,Recreation & Sport,Community and Leisure ,Supplies & Services,Grants and subscriptions,Capital Grants,27/01/2022,363155,2353.11,The Freedom Centre
Central Services to the Public,Management & Support Services,Legal & Democratic,Supplies & Services,Services,Legal Fees,13/01/2022,360470,2000,Cornerstone Barristers
Central Services to the Public,Management & Support Services,Legal & Democratic,Supplies & Services,Services,Legal Fees,13/01/2022,360471,2000,Cornerstone Barristers
Central Services to the Public,Management & Support Services,Legal & Democratic,Supplies & Services,Services,Legal Fees,13/01/2022,360472,2000,Cornerstone Barristers
External Trading Accounts,Property Investments,Premises & Asset Management,Premises related Expenditure,Repairs Alterations & Maintenance of Buildings,Salt & Gritting,20/01/2022,361504,2029.76,Outco Ltd
Environmental & Regulatory,Street Cleansing (not chargeable to Highways),Environmental,Transport Related Expenditure,Direct Transport Costs,Tyres,27/01/2022,362981,300.35,Tructyre Ats
Environmental & Regulatory,Waste management,Environmental,Transport Related Expenditure,Direct Transport Costs,Tyres,27/01/2022,362981,1715.54,Tructyre Ats
Environmental & Regulatory,Waste management,Environmental,Transport Related Expenditure,Direct Transport Costs,Tyres,27/01/2022,362981,54.05,Tructyre Ats
Environmental & Regulatory,Street Cleansing (not chargeable to Highways),Environmental,Employees,Indirect Employee Expenses,Agency Staff - Waged Posts,20/01/2022,361927,491.85,24-7 Staffing
Environmental & Regulatory,Waste management,Environmental,Employees,Indirect Employee Expenses,Agency Staff - Waged Posts,20/01/2022,361927,1406.2,24-7 Staffing
Environmental & Regulatory,Waste management,Environmental,Employees,Indirect Employee Expenses,Agency Staff - Waged Posts,20/01/2022,361927,205.84,24-7 Staffing
Central Services to the Public,Management & Support Services,Premises & Asset Management,Third Party Payments,Other Establishments,Private Contractors,20/01/2022,360671,2227.2,Personal Data - Data Protection Act 1998
Cultural & Related,Open Spaces,Community and Leisure ,Premises related Expenditure,Repairs Alterations & Maintenance of Buildings,Estates premises costs - AMP,06/01/2022,358375,2302.3,G A Butler & Sons Ltd
Planning & Development,Development Control,Planning & Building,Third Party Payments,Commuted Sum,s106 Developer contributions,20/01/2022,362287,2850,Abbotts Ann Parish Council
Central Services to the Public,Management & Support Services,Environmental,Transport Related Expenditure,Direct Transport Costs,Diesel,13/01/2022,360865,2376.62,Wp Group Limited
Planning & Development,Development Control,Planning & Building,Employees,Indirect Employee Expenses,Advertising Of Vacancies,20/01/2022,360913,2395,Haymarket Media Group Ltd
Central Services to the Public,Management & Support Services,HR Services,Third Party Payments,Other Local Authorities,Shared Service Contract Costs,20/01/2022,360783,2396.16,Mhr International Uk Ltd
Central Services to the Public,Management & Support Services,Premises & Asset Management,Supplies & Services,Communications & Computing,Software Maintenance,20/01/2022,361994,2403.02,Integrated Solutions Ltd
Environmental & Regulatory,Regulatory Services,Housing and Environmental Health ,Supplies & Services,Grants and subscriptions,Capital Grants,20/01/2022,362512,2900,Grb Groundworks Ltd
Environmental & Regulatory,Regulatory Services,Housing and Environmental Health ,Supplies & Services,Miscellaneous Expenses,Kennel fees,27/01/2022,362496,2426.24,Three Oak Boarding Kennels
"Highways, Roads & Transport",Parking Services,Plan Pol & Transport,Supplies & Services,Communications & Computing,Computer Software,06/01/2022,360268,2451,Ina Parc Ltd
Central Services to the Public,Management & Support Services,Finance,Supplies & Services,Grants & Subscriptions,Grants,20/01/2022,362243,2976,Asda
Environmental & Regulatory,Street Cleansing (not chargeable to Highways),Environmental,Employees,Indirect Employee Expenses,Agency Staff - Waged Posts,27/01/2022,362521,99.6,24-7 Staffing
Environmental & Regulatory,Waste management,Environmental,Employees,Indirect Employee Expenses,Agency Staff - Waged Posts,27/01/2022,362521,2160.85,24-7 Staffing
Environmental & Regulatory,Waste management,Environmental,Employees,Indirect Employee Expenses,Agency Staff - Waged Posts,27/01/2022,362521,239.4,24-7 Staffing
Central Services to the Public,Local Tax Collection,Revenues,Supplies & Services,Communications & Computing,Software Maintenance,06/01/2022,360782,1000,Nec Software Solutions Uk Limited
Central Services to the Public,Local Tax Collection,Revenues,Supplies & Services,Communications & Computing,Software Maintenance,06/01/2022,360782,1500,Nec Software Solutions Uk Limited
Central Services to the Public,Management & Support Services,Revenues,Supplies & Services,Miscellaneous Expenses,Security Services,06/01/2022,360396,219.8,Jade Security Services Ltd
"Highways, Roads & Transport",Parking Services,Plan Pol & Transport,Supplies & Services,Services,Professional Fees,06/01/2022,360396,2326.71,Jade Security Services Ltd
Environmental & Regulatory,Street Cleansing (not chargeable to Highways),Environmental,Employees,Indirect Employee Expenses,Agency Staff - Waged Posts,20/01/2022,359338,1101.26,24-7 Staffing
Environmental & Regulatory,Waste management,Environmental,Employees,Indirect Employee Expenses,Agency Staff - Waged Posts,20/01/2022,359338,1447.52,24-7 Staffing
Environmental & Regulatory,Regulatory Services,Housing and Environmental Health ,Supplies & Services,Services,Project Consultancy - Policy,13/01/2022,360912,2586.67,Als Environmental Ltd
Central Services to the Public,Management & Support Services,Premises & Asset Management,Third Party Payments,Other Establishments,Contract Catering,20/01/2022,361975,2679.27,Edwards And Ward Ltd
Central Services to the Public,Management & Support Services,IT,Supplies & Services,Communications & Computing,Software Maintenance,13/01/2022,361150,2700,Automated Intelligence Ltd
Central Services,Corporate & Democratic Core,Corporate & Democratic,Supplies & Services,"Printing, Stationery & General Office Expenses",External Printing,20/01/2022,361269,3249,Mortons Print
Central Services to the Public,Management & Support Services,Revenues,Supplies & Services,Miscellaneous Expenses,Security Services,27/01/2022,362256,172.7,Jade Security Services Ltd
"Highways, Roads & Transport",Parking Services,Plan Pol & Transport,Supplies & Services,Services,Professional Fees,27/01/2022,362256,2557.68,Jade Security Services Ltd
Central Services to the Public,Management & Support Services,Legal & Democratic,Supplies & Services,Services,Legal Fees,13/01/2022,360466,2750,Cornerstone Barristers
Central Services to the Public,Management & Support Services,Premises & Asset Management,Premises related Expenditure,Repairs Alterations & Maintenance of Buildings,General Repairs,27/01/2022,362020,2750.36,Enerveo Ltd
Central Services to the Public,Management & Support Services,Premises & Asset Management,Premises related Expenditure,Energy Costs,Gas,27/01/2022,362798,2772.48,Totalenergies Gas & Power Ltd
Central Services to the Public,Management & Support Services,Legal & Democratic,Supplies & Services,Services,Legal Fees,13/01/2022,360375,2800,Cornerstone Barristers
Cultural & Related,Open Spaces,Community and Leisure ,Employees,Indirect Employee Expenses,Temporary Staff,06/01/2022,360763,2800,The Arboricultural Co Ltd
External Trading Accounts,Business Parks,Premises & Asset Management,Premises related Expenditure,Repairs Alterations & Maintenance of Buildings,General Repairs,06/01/2022,360403,1425,Elevate Uk Lifts Ltd
External Trading Accounts,Economic Development,Premises & Asset Management,Premises related Expenditure,Repairs Alterations & Maintenance of Buildings,General Repairs,06/01/2022,360403,1425,Elevate Uk Lifts Ltd
Environmental & Regulatory,Regulatory Services,Housing and Environmental Health ,Employees,Indirect Employee Expenses,Temporary Staff,13/01/2022,360924,2910.57,Contractor Umbrella Ltd
Planning & Development,Development Control,Planning & Building,Employees,Indirect Employee Expenses,Temporary Staff,20/01/2022,361952,2960,G2 Recruitment Solutions
Central Services to the Public,Management & Support Services,HR Services,Third Party Payments,Other Local Authorities,Shared Service Contract Costs,06/01/2022,359327,3000,Mhr International Uk Ltd
Central Services,Corporate & Democratic Core,Corporate & Democratic,Supplies & Services,Services,Legal Fees,13/01/2022,360119,3610,Radcliffe Chambers
Cultural & Related,Culture & Heritage,Community and Leisure ,Supplies & Services,Miscellaneous Expenses,Booking Of Acts,27/01/2022,363130,3170.92,Mark Lundquist Mlm Concerts Ltd
Environmental & Regulatory,Street Cleansing (not chargeable to Highways),Environmental,Employees,Indirect Employee Expenses,Agency Staff - Waged Posts,20/01/2022,357186,586.86,24-7 Staffing
Environmental & Regulatory,Waste management,Environmental,Employees,Indirect Employee Expenses,Agency Staff - Waged Posts,20/01/2022,357186,1652.95,24-7 Staffing
Environmental & Regulatory,Waste management,Environmental,Employees,Indirect Employee Expenses,Agency Staff - Waged Posts,20/01/2022,357186,932.31,24-7 Staffing
Environmental & Regulatory,Waste management,Environmental,Supplies & Services,"Printing, Stationery & General Office Expenses",External Printing,06/01/2022,358979,3173.5,Cammegh Davies Fleming
Cultural & Related,Open Spaces,Community and Leisure ,Premises related Expenditure,Repairs Alterations & Maintenance of Buildings,Estates premises costs - AMP,13/01/2022,361100,3210,Rocon Contractors Ltd
"Highways, Roads & Transport",Parking Services,Plan Pol & Transport,Supplies & Services,Services,Professional Fees,27/01/2022,361515,1220.9,Park Now Limited
"Highways, Roads & Transport",Parking Services,Plan Pol & Transport,Transport Related Costs,Management Fee,Car Park charges,27/01/2022,361515,2056.75,Park Now Limited
Cultural & Related,Open Spaces,Environmental,Transport Related Expenditure,Direct Transport Costs,Tyres,27/01/2022,362327,27.75,Tructyre Ats
Environmental & Regulatory,Waste & Recycling Management,Environmental,Transport Related Expenditure,Direct Transport Costs,Tyres,27/01/2022,362327,9.25,Tructyre Ats
Environmental & Regulatory,Street Cleansing (not chargeable to Highways),Environmental,Transport Related Expenditure,Direct Transport Costs,Tyres,27/01/2022,362327,38.28,Tructyre Ats
Environmental & Regulatory,Waste management,Environmental,Transport Related Expenditure,Direct Transport Costs,Tyres,27/01/2022,362327,3226.31,Tructyre Ats
Cultural & Related,Open Spaces,Community and Leisure ,Premises related Expenditure,Grounds Maintenance Costs,Gm - Additional Works,27/01/2022,362961,4000,Fwag South East
Central Services to the Public,Management & Support Services,Finance,Supplies & Services,"Printing, Stationery & General Office Expenses",Postage Costs,13/01/2022,360900,4004.11,Pitney Bowes Limited
Central Services to the Public,Management & Support Services,IT,Supplies & Services,"Equipment, Furniture & Materials",IT Supp and Serv AMP,20/01/2022,361945,3399.8,Pure Technology Group
Cultural & Related,Culture & Heritage,Community and Leisure ,Supplies & Services,Miscellaneous Expenses,Booking Of Acts,13/01/2022,360285,3433.26,Sweeney Entertainments
Central Services to the Public,Management & Support Services,Environmental,Transport Related Expenditure,Direct Transport Costs,Diesel,13/01/2022,360877,3453.82,Wp Group Limited
Central Services to the Public,Management & Support Services,Environmental,Transport Related Expenditure,Direct Transport Costs,Diesel,13/01/2022,360864,3461.1,Wp Group Limited
Planning & Development,Planning Policy,Plan Pol & Transport,Supplies & Services,Services,Legal Fees,13/01/2022,360784,3500,Cornerstone Barristers
Environmental & Regulatory,Regulatory Services,Housing and Environmental Health ,Supplies & Services,Grants and subscriptions,Capital Grants,06/01/2022,360859,4250,Bss Plumbing And Heating
Planning & Development,Development Control,Planning & Building,Supplies & Services,Services,Project Consultancy - Policy,27/01/2022,361941,3578.75,Hampshire County Council
Cultural & Related,Culture & Heritage,Community and Leisure ,Supplies & Services,Miscellaneous Expenses,Booking Of Acts,06/01/2022,360895,3636.19,Ballet Theatre Uk
Cultural & Related,Culture & Heritage,Community and Leisure ,Supplies & Services,Miscellaneous Expenses,Booking Of Acts,13/01/2022,361533,3638.35,Honalee Media
Cultural & Related,Culture & Heritage,Community and Leisure ,Supplies & Services,Miscellaneous Expenses,Booking Of Acts,27/01/2022,361520,3661.64,Wilde Productions Ltd
Cultural & Related,Culture & Heritage,Community and Leisure ,Supplies & Services,Miscellaneous Expenses,Booking Of Acts,27/01/2022,362516,3747.29,Artistes International Management
Environmental & Regulatory,Regulatory Services,Housing and Environmental Health ,Supplies & Services,Grants and subscriptions,Capital Grants,13/01/2022,361756,4693,1st Choice Stairlifts Ltd
Central Services to the Public,Management & Support Services,Environmental,Transport Related Expenditure,Direct Transport Costs,Diesel,20/01/2022,362005,4013.02,Wp Group Limited
Environmental & Regulatory,Regulatory Services,Housing and Environmental Health ,Supplies & Services,Grants and subscriptions,Capital Grants,20/01/2022,362280,4830.22,A & E Builders
Environmental & Regulatory,Waste & Recycling Management,Environmental,Supplies & Services,"Equipment, Furniture & Materials",Purchase Equip + Materials,20/01/2022,360773,4057.2,Glasdon Uk Ltd
Central Services to the Public,Local Land Charges,Legal & Democratic,Supplies & Services,Miscellaneous Expenses,Land Charges Fees,20/01/2022,361993,4059,Hampshire County Council
Planning & Development,Economic Development,Planning Policy & Economic Development ,Supplies & Services,Services,Training Courses,06/01/2022,358843,5000,Correct Contract Services
Cultural & Related,Open Spaces,Environmental,Supplies & Services,"Equipment, Furniture & Materials",Purchases for playgrounds,20/01/2022,360265,4458.77,Gb Sport & Leisure Uk Ltd
Cultural & Related,Open Spaces,Community and Leisure ,Premises related Expenditure,Repairs Alterations & Maintenance of Buildings,Estates premises costs - AMP,20/01/2022,361946,4571,Groundlord Ltd
Central Services to the Public,Management & Support Services,Environmental,Transport Related Expenditure,Direct Transport Costs,Diesel,13/01/2022,360867,4598.85,Wp Group Limited
Cultural & Related,Open Spaces,Community and Leisure ,Premises related Expenditure,Grounds Maintenance Costs,Gm - Additional Works,20/01/2022,361968,4699,Walthams Ltd
Central Services to the Public,Management & Support Services,IT,Supplies & Services,Communications & Computing,Software Maintenance,20/01/2022,361931,4723.7,Phoenix Software Ltd
Housing Services,Homelessness,Housing and Environmental Health ,Supplies & Services,Services,Training Courses,27/01/2022,362499,4990,Uk Mediation Limited
Cultural & Related,Open Spaces,Community and Leisure ,Premises related Expenditure,Repairs Alterations & Maintenance of Buildings,Estates premises costs - AMP,13/01/2022,361155,5000,Rocon Contractors Ltd
Central Services to the Public,Management & Support Services,Premises & Asset Management,Premises related Expenditure,Repairs Alterations & Maintenance of Buildings,General Repairs,06/01/2022,360373,5184.3,Kieron Beattie Landscaping Ltd
Environmental & Regulatory,Regulatory Services,Housing and Environmental Health ,Supplies & Services,Grants and subscriptions,Capital Grants,13/01/2022,361757,6998,Rs Building & Property Services
External Trading Accounts,Economic Development,Premises & Asset Management,Premises related Expenditure,Cleaning and domestic supplies,Contract Cleaning - Non Estates,27/01/2022,362518,708.34,Hi-Spec Facilities Services Plc
External Trading Accounts,Economic Development,Premises & Asset Management,Premises related Expenditure,Cleaning and domestic supplies,Contract Cleaning - Non Estates,27/01/2022,362519,708.34,Hi-Spec Facilities Services Plc
External Trading Accounts,Business Parks,Premises & Asset Management,Premises related Expenditure,Cleaning and domestic supplies,Contract Cleaning - Non Estates,27/01/2022,362518,215.01,Hi-Spec Facilities Services Plc
External Trading Accounts,Business Parks,Premises & Asset Management,Premises related Expenditure,Cleaning and domestic supplies,Contract Cleaning - Non Estates,27/01/2022,362519,215.01,Hi-Spec Facilities Services Plc
Central Services to the Public,Management & Support Services,Premises & Asset Management,Premises related Expenditure,Cleaning and domestic supplies,Contract Cleaning - Non Estates,27/01/2022,362518,224.66,Hi-Spec Facilities Services Plc
Central Services to the Public,Management & Support Services,Premises & Asset Management,Premises related Expenditure,Cleaning and domestic supplies,Contract Cleaning - Non Estates,27/01/2022,362519,224.66,Hi-Spec Facilities Services Plc
Environmental & Regulatory,Regulatory Services,Premises & Asset Management,Premises related Expenditure,Cleaning and domestic supplies,Contract Cleaning - Non Estates,27/01/2022,362518,2006.74,Hi-Spec Facilities Services Plc
Environmental & Regulatory,Regulatory Services,Premises & Asset Management,Premises related Expenditure,Cleaning and domestic supplies,Contract Cleaning - Non Estates,27/01/2022,362519,2006.74,Hi-Spec Facilities Services Plc
Cultural & Related,Recreation & Sport,Community and Leisure ,Premises related Expenditure,Cleaning and domestic supplies,Contract Cleaning - Non Estates,27/01/2022,362518,281.06,Hi-Spec Facilities Services Plc
Cultural & Related,Recreation & Sport,Community and Leisure ,Premises related Expenditure,Cleaning and domestic supplies,Contract Cleaning - Non Estates,27/01/2022,362519,281.06,Hi-Spec Facilities Services Plc
Cultural & Related,Recreation & Sport,Community and Leisure ,Premises related Expenditure,Cleaning and domestic supplies,Contract Cleaning - Non Estates,27/01/2022,362518,752.53,Hi-Spec Facilities Services Plc
Cultural & Related,Recreation & Sport,Community and Leisure ,Premises related Expenditure,Cleaning and domestic supplies,Contract Cleaning - Non Estates,27/01/2022,362519,752.53,Hi-Spec Facilities Services Plc
Cultural & Related,Recreation & Sport,Community and Leisure ,Premises related Expenditure,Cleaning and domestic supplies,Contract Cleaning - Non Estates,27/01/2022,362518,456.75,Hi-Spec Facilities Services Plc
Cultural & Related,Recreation & Sport,Community and Leisure ,Premises related Expenditure,Cleaning and domestic supplies,Contract Cleaning - Non Estates,27/01/2022,362519,456.75,Hi-Spec Facilities Services Plc
Cultural & Related,Recreation & Sport,Community and Leisure ,Premises related Expenditure,Cleaning and domestic supplies,Contract Cleaning - Non Estates,27/01/2022,362518,456.75,Hi-Spec Facilities Services Plc
Cultural & Related,Recreation & Sport,Community and Leisure ,Premises related Expenditure,Cleaning and domestic supplies,Contract Cleaning - Non Estates,27/01/2022,362519,456.75,Hi-Spec Facilities Services Plc
Environmental & Regulatory,"Cemetery, Cremation and Mortuary Services",Community and Leisure ,Premises related Expenditure,Cleaning and domestic supplies,Contract Cleaning - Non Estates,27/01/2022,362518,35.83,Hi-Spec Facilities Services Plc
Environmental & Regulatory,"Cemetery, Cremation and Mortuary Services",Community and Leisure ,Premises related Expenditure,Cleaning and domestic supplies,Contract Cleaning - Non Estates,27/01/2022,362519,35.83,Hi-Spec Facilities Services Plc
Cultural & Related,Open Spaces,Community and Leisure ,Premises related Expenditure,Cleaning and domestic supplies,Contract Cleaning - Non Estates,27/01/2022,362518,752.53,Hi-Spec Facilities Services Plc
Cultural & Related,Open Spaces,Community and Leisure ,Premises related Expenditure,Cleaning and domestic supplies,Contract Cleaning - Non Estates,27/01/2022,362519,752.53,Hi-Spec Facilities Services Plc
"Highways, Roads & Transport",Parking Services,Plan Pol & Transport,Premises related Expenditure,Cleaning and domestic supplies,Contract Cleaning - Non Estates,27/01/2022,362518,35.83,Hi-Spec Facilities Services Plc
"Highways, Roads & Transport",Parking Services,Plan Pol & Transport,Premises related Expenditure,Cleaning and domestic supplies,Contract Cleaning - Non Estates,27/01/2022,362519,35.83,Hi-Spec Facilities Services Plc
Central Services to the Public,Local Tax Collection,Revenues,Supplies & Services,Miscellaneous Expenses,Other Miscellaneous Costs,13/01/2022,361164,5991.42,Andover Town Centre Bid Ltd
Central Services to the Public,Management & Support Services,Environmental,Transport Related Expenditure,Direct Transport Costs,Diesel,13/01/2022,360866,6322.7,Wp Group Limited
Central Services to the Public,Management & Support Services,Estates and Economic Development ,Third Party Payments,Private contractors,Main Contractor Costs,27/01/2022,356359,6910,Broxap Limited (Stadia Sports )
Central Services to the Public,Local Land Charges,Legal & Democratic,Supplies & Services,Miscellaneous Expenses,Land Charges Fees,20/01/2022,361992,7626,Hampshire County Council
External Trading Accounts,Business Parks,Premises & Asset Management,Premises related Expenditure,Repairs Alterations & Maintenance of Buildings,Building Maint - Non Estates,06/01/2022,360768,7665.26,Ozweld International Ltd
External Trading Accounts,Economic Development,Premises & Asset Management,Premises related Expenditure,Cleaning and domestic supplies,Contract Cleaning - Non Estates,20/01/2022,362484,10952.7,Red Support Services
Central Services to the Public,Local Tax Collection,Revenues,Supplies & Services,Miscellaneous Expenses,Other Miscellaneous Costs,13/01/2022,360410,11412.75,Andover Town Centre Bid Ltd
Central Services to the Public,Management & Support Services,Environmental,Transport Related Expenditure,Direct Transport Costs,Diesel,13/01/2022,360878,11756.65,Wp Group Limited
Cultural & Related,Open Spaces,Community and Leisure ,Premises related Expenditure,Repairs Alterations & Maintenance of Buildings,Estates premises costs - AMP,13/01/2022,361131,2185.72,Gristwood & Toms Ltd
Cultural & Related,Open Spaces,Community and Leisure ,Premises related Expenditure,Grounds Maintenance Costs,Non Contract Tree Works,13/01/2022,361131,3305.18,Gristwood & Toms Ltd
Cultural & Related,Open Spaces,Community and Leisure ,Premises related Expenditure,Repairs Alterations & Maintenance of Buildings,Estates premises costs - AMP,13/01/2022,361131,6295.85,Gristwood & Toms Ltd
Cultural & Related,Open Spaces,Community and Leisure ,Premises related Expenditure,Repairs Alterations & Maintenance of Buildings,Estates premises costs - AMP,06/01/2022,358376,11820,G A Butler & Sons Ltd
Environmental & Regulatory,Regulatory Services,Housing and Environmental Health ,Supplies & Services,Grants and subscriptions,Capital Grants,20/01/2022,362281,14561.44,A & E Builders
Cultural & Related,Open Spaces,Community and Leisure ,Supplies & Services,Services,Property Acquisition,13/01/2022,361491,14600,Hmrc
External Trading Accounts,Business Parks,Premises & Asset Management,Premises related Expenditure,Repairs Alterations & Maintenance of Buildings,Building Maint - Non Estates,06/01/2022,360767,12193,Ozweld International Ltd
Planning & Development,Planning Policy,Plan Pol & Transport,Supplies & Services,Services,Project Consultancy - Policy,20/01/2022,361967,12500,Fareham Borough Council
External Trading Accounts,Property Investments,Premises & Asset Management,Premises related Expenditure,Repairs Alterations & Maintenance of Buildings,Building Maint - Non Estates,20/01/2022,360669,12792,Practical Roof Solutions Ltd
Cultural & Related,Open Spaces,Community and Leisure ,Premises related Expenditure,Repairs Alterations & Maintenance of Buildings,Estates premises costs - AMP,20/01/2022,362026,13672.76,Rocon Contractors Ltd
Cultural & Related,Culture & Heritage,Premises & Asset Management,Premises related Expenditure,Repairs Alterations & Maintenance of Buildings,Estates premises costs - AMP,06/01/2022,360091,17308.49,Stonewest Limited
Planning & Development,Development Control,Planning & Building,Third Party Payments,Commuted Sum,s106 Developer contributions,20/01/2022,362286,21700,Nursling & Rownhams P C
Central Services to the Public,Management & Support Services,IT,Supplies & Services,Communications & Computing,Computer Software,20/01/2022,360038,1233.55,Phoenix Software Ltd
Central Services to the Public,Management & Support Services,IT,Supplies & Services,Communications & Computing,Computer Software,20/01/2022,360038,19321.74,Phoenix Software Ltd
Cultural & Related,Open Spaces,Community and Leisure ,Premises related Expenditure,Grounds Maintenance Costs,Non Contract Tree Works,13/01/2022,357991,438.06,Gristwood & Toms Ltd
Cultural & Related,Open Spaces,Community and Leisure ,Premises related Expenditure,Repairs Alterations & Maintenance of Buildings,Estates premises costs - AMP,13/01/2022,357991,146.53,Gristwood & Toms Ltd
Cultural & Related,Open Spaces,Community and Leisure ,Premises related Expenditure,Grounds Maintenance Costs,Non Contract Tree Works,13/01/2022,357991,813.56,Gristwood & Toms Ltd
Cultural & Related,Open Spaces,Community and Leisure ,Premises related Expenditure,Repairs Alterations & Maintenance of Buildings,Estates premises costs - AMP,13/01/2022,357991,20765.7,Gristwood & Toms Ltd
External Trading Accounts,Economic Development,Premises & Asset Management,Third Party Payments,Other Establishments,Other Contractors,20/01/2022,362485,24013.17,Red Support Services
Cultural & Related,Open Spaces,Community and Leisure ,Premises related Expenditure,Repairs Alterations & Maintenance of Buildings,Estates premises costs - AMP,20/01/2022,361961,27236,Groundlord Ltd
External Trading Accounts,Property Investments,Estates and Economic Development ,Third Party Payments,Private contractors,Main Contractor Costs,06/01/2022,360861,27800,Kier Property Developments Ltd.
Planning & Development,Community Development,Community and Leisure ,Supplies & Services,Grants & Subscriptions,Grants,13/01/2022,361768,57243.67,Citizen'S Advice Test Valley
Housing Services,Homelessness,Housing and Environmental Health ,Supplies & Services,Services,Training Courses,20/01/2022,361990,72700.25,Two Saints Ltd
"Highways, Roads & Transport",Highways and roads - maintenance,Plan Pol & Transport,Third Party Payments,Private contractors,Main Contractor Costs,20/01/2022,362308,63108.55,Rocon Contractors Ltd
Cultural & Related,Recreation & Sport,Community and Leisure ,Third Party Payments,Private contractors,Main Contractor Costs,27/01/2022,361957,69000,Hags-Smp Ltd
External Trading Accounts,Property Investments,Estates and Economic Development ,Third Party Payments,Private contractors,Main Contractor Costs,06/01/2022,360860,455333.17,Kier Property Developments Ltd.
